Cogmind - Beta 13 @@@ ROGUE MODE // 2024.04.17 @ 18:49:50 Player: Exceptionally Mediocre Result: Destroyed by S-27 Virus with Autogun Performance ------------- Evolutions (4) 2000 Regions Visited (7) 1400 Robots Destroyed (80) 400 Value Destroyed (2262) 2262 Prototype IDs (3) 60 Alien Tech Used (0) 0 Bonus (456) 456 TOTAL SCORE: 6578 Bonus ------- High Alert Combat Kills 62 Entered Garrisons 200 Entered DSFs 500 Friendly Fire -306 Cogmind --------- Core Integrity 0/850 Matter 291/300 Energy 100/100 System Corruption 3% Temperature Cool (0) Movement Treading (107) Ox1 Location -6/Garrison Parts ------- > --- POWER (2) -------- (None) > --- PROPULSION (6) --- Treaded VTOL-Gravmag Exoskeleton > --- UTILITY (5) ------ Huge Storage Unit Advanced Targeting Computer > --- WEAPON (2) ------- Lance > --- INVENTORY (25) --- High-capacity Battery (250) Medium Matter Pod (100) Sensor Array Flail Lance Lance Peak State ------------ > --- POWER ------------ Nuclear-Deuterium Core > --- PROPULSION ------- Treaded VTOL-Gravmag Exoskeleton > --- UTILITY ---------- Armored Scrap Engine Huge Storage Unit Advanced Targeting Computer Phase Shifter > --- WEAPON ----------- Laser Construct/G Flail > --- INVENTORY -------- Cooling System High-capacity Battery High-capacity Battery Medium Matter Pod Sensor Array Signal Interpreter Phase Shifter Phase Shifter Subdweller Shrapnel Launcher Mining Laser [Rating: 63] Favorites ----------- Power Light Ion Engine Engine Light Ion Engine Power Core Constructs Propulsion Wheel Treads Constructs Leg Aluminum Leg Wheel Wheel Utility Huge Storage Unit Device Improved Terrain Scanner Storage Huge Storage Unit Processor Advanced Targeting Computer Protection Light Armor Plating Weapon Slug Cannon Energy Gun Medium Laser Energy Cannon Beam Cannon Ballistic Gun Light Assault Rifle Ballistic Cannon Slug Cannon Launcher Subdweller Shrapnel Launcher Special Weapon Mining Laser Impact Weapon Flail Piercing Weapon Lance Build | -11 -10 -10 -9 -7 -7 -6 -6 ------- Run | Yrd Mat Sub Rec Fac DSF Fac Gar Slots Evolved 8 | . . . . 6 . 2 . Power 1 | . . . . 1 . . . Propulsion 4 | . . . . 2 . 2 . Utility 3 | . . . . 3 . . . Weapon . | . . . . . . . . Parts Attached 72 | 8 14 14 9 . 7 4 16 Power 8 | 1 1 1 3 . . . 2 Engine 8 | 1 1 1 3 . . . 2 Core . | . . . . . . . . Reactor . | . . . . . . . . Propulsion 15 | 2 5 3 3 . 2 . . Treads . | . . . . . . . . Leg 6 | 2 2 . . . 2 . . Wheel 9 | . 3 3 3 . . . . Hover . | . . . . . . . . Flight . | . . . . . . . . Utility 21 | 2 2 3 1 . 4 2 7 Device 11 | 1 . 1 . . 2 2 5 Storage 5 | 1 2 . . . . . 2 Processor 1 | . . . . . 1 . . Hackware . | . . . . . . . . Protection 4 | . . 2 1 . 1 . . Artifact . | . . . . . . . . Weapon 28 | 3 6 7 2 . 1 2 7 Energy Gun 7 | 2 3 . 1 . . . 1 Energy Cannon 2 | . . 2 . . . . . Ballistic Gun 4 | 1 . 2 1 . . . . Ballistic Cannon 1 | . . 1 . . . . . Launcher 4 | . 1 1 . . 1 . 1 Special Weapon 5 | . 2 1 . . . 1 1 Impact Weapon 2 | . . . . . . 1 1 Slashing Weapon . | . . . . . . . . Piercing Weapon 3 | . . . . . . . 3 Special Melee Weapon . | . . . . . . . . Unidentified Prototypes . | . . . . . . . . Parts Lost 30 | . 1 2 . . 6 . 21 Power 6 | . . . . . 1 . 5 Propulsion 5 | . . 1 . . 2 . 2 Utility 11 | . . 1 . . 1 . 9 Weapon 8 | . 1 . . . 2 . 5 Highest Loss Streak 10 | . 1 1 . . 3 . 10 To Critical Strikes . | . . . . . . . . Average Slot Usage (%) 83 | . 99 99 99 53 57 50 45 Engine 10 | . 14 14 13 7 1 . 3 Core 1 | . . . . . 5 5 1 Leg 3 | . 12 . . . 8 2 . Wheel 16 | . 15 27 28 15 9 2 . Device 9 | . 14 11 . . 9 13 9 Storage 11 | . 14 14 14 7 7 6 6 Processor 1 | . . . . . 1 6 6 Protection 3 | . . 2 14 7 1 . . Energy Gun 5 | . 15 . 10 7 4 . 2 Energy Cannon 1 | . . 6 . . . . . Ballistic Gun 5 | . 10 7 3 . . 5 1 Ballistic Cannon 5 | . . 10 14 7 2 . . Special Weapon 1 | . 1 2 . . . . . Naked Turns . | . . . . . . . . Heaviest Build 118 | 11 88 101 102 102 118 102 108 Greatest Support 67 | 20 20 20 24 24 36 67 67 Greatest Overweight (x) 33 | 3 8 5 5 4 9 33 3 Average Overweight (x) 3 | . 2 4 4 4 3 2 1 Largest Inventory Capacity 25 | 8 25 25 25 25 25 25 25 Average Capacity 22 | 7 19 25 25 25 25 25 21 Most Carried 25 | 8 20 25 25 25 24 8 10 Average Carried 15 | 2 12 23 24 25 5 4 6 Final Capacity 25 | 8 25 25 25 25 25 25 25 Final Carried 25 | 8 20 25 25 25 4 8 6 Scrap Engine Consumption 87 | . . . . . 38 10 39 Constructs Created 7 | . . . . . 2 1 4 Constructs Modified 23 | . . . . . . 8 15 Class Distribution -------------------- 75% | Mutant 13% | Scavenger-Mutant 11% | Construct Dominant Class ---------------- Scavenger-Mutant | -10/Materials Mutant | -10/Subcaves Mutant | -9/Recycling Mutant | -7/Factory Mutant | -7/DSF Construct | -6/Factory Mutant | -6/Garrison Resources | -11 -10 -10 -9 -7 -7 -6 -6 ----------- Run | Yrd Mat Sub Rec Fac DSF Fac Gar Matter Collected 1616 | 277 333 287 257 . 84 . 378 Remotely . | . . . . . . . . Salvage Created 2935 | 182 592 161 515 . 438 . 1047 Parts 168 | 10 46 19 24 . 19 . 50 Haulers Intercepted 3 | . 2 . . . 1 . . Recyclers Shooed 9 | 1 3 . 5 . . . . Parts Field Recycled . | . . . . . . . . Retrieved Matter . | . . . . . . . . Parts Self-Destructed 14 | . . 14 . . . . . Prevented . | . . . . . . . . Kills | -11 -10 -10 -9 -7 -7 -6 -6 ------- Run | Yrd Mat Sub Rec Fac DSF Fac Gar Combat Hostiles Destroyed 53 | . 10 10 2 . 9 . 22 Melee 14 | . . . . . . . 14 Guns 15 | . 4 3 1 . 3 . 4 Cannons 4 | . . 3 1 . . . . AOE 18 | . 6 4 . . 6 . 2 Classes Destroyed 18 | 3 6 2 1 . 5 . 1 Worker 4 | 1 3 . . . . . . Builder 3 | . 2 . 1 . . . . Tunneler 4 | 3 1 . . . . . . Hauler 3 | . 2 . . . 1 . . Recycler 5 | 1 1 . 3 . . . . Operator 1 | . 1 . . . . . . Turret 2 | . . 2 . . . . . Watcher 3 | . 3 . . . . . . Swarmer 18 | . 3 7 . . . . 8 Grunt 15 | . 7 . . . 3 . 5 Brawler 1 | . . . . . 1 . . Sentry 8 | . . . 2 . . . 6 Specialist 2 | . . . . . 2 . . Hunter 1 | . . . . . 1 . . Programmer 3 | . . . . . 1 . 2 Heavy 1 | . . . . . 1 . . Behemoth 1 | . . . . . . . 1 Subdweller 3 | . . 3 . . . . . Thug 2 | . . . 2 . . . . Best Kill Streak 10 | 3 10 6 3 . 8 . 6 Combat Bots Only 7 | . 7 4 2 . 7 . 6 Max Kills in Single Turn 3 | 1 3 3 1 . 3 . 1 Gunslinging . | . . . . . . . . Exploded 3 | . 1 3 . . 3 . 1 Melee 1 | . . . . . . . 1 Uniques/NPCs Destroyed . | . . . . . . . . Combat | -11 -10 -10 -9 -7 -7 -6 -6 -------- Run | Yrd Mat Sub Rec Fac DSF Fac Gar Hostile Shots Fired 886 | . 46 51 18 . 101 38 632 Missed 327 | . 12 13 7 . 47 18 230 Damage Taken 6801 | . 385 400 161 . 1201 364 4290 Core 1339 | . 60 103 63 . 259 85 769 Absorbed by Shields . | . . . . . . . . Regen/Repaired (Parts) 1011 | . . . . . . 230 781 Core Remaining (%) 57 | 100 . . 9 . 63 . . Volleys Fired 242 | 8 86 34 19 . 32 2 61 Largest 2 | 2 2 2 2 . 2 1 1 Hottest 123 | 60 100 100 123 . 115 100 51 Shots Fired 330 | 16 138 48 32 . 34 2 60 Gun 237 | 16 105 14 15 . 29 . 58 Cannon 31 | . . 14 17 . . . . Launcher 20 | . 9 4 . . 5 . 2 Special 42 | . 24 16 . . . 2 . Kinetic 112 | 8 48 26 23 . 5 . 2 Thermal 170 | 8 81 22 9 . 29 2 19 Explosive 9 | . 9 . . . . . . Electromagnetic 39 | . . . . . . . 39 Robot Hit Streak 18 | 5 10 13 6 . 8 . 18 Robot Miss Streak 4 | 4 4 3 4 . 2 . 4 Penetration Max . | . . . . . . . . Secondary Targets . | . . . . . . . . Shots Hit Robots 223 | 8 66 21 14 . 25 . 89 Core Hits 150 | 7 42 18 8 . 20 . 55 Critical Kills 1 | . . . 1 . . . . Critical Parts Destroyed . | . . . . . . . . Critical Strikes 8 | . 3 . 2 . 2 . 1 Burn 6 | . 3 . 1 . 2 . . Destroy 1 | . . . 1 . . . . Impale 1 | . . . . . . . 1 Melee Attacks 58 | . . . . . . 1 57 Impact 11 | . . . . . . 1 10 Slashing . | . . . . . . . . Piercing 47 | . . . . . . . 47 Sneak Attacks . | . . . . . . . . Combat Hostiles . | . . . . . . . . Follow-up Attacks 4 | . . . . . . . 4 Damage Inflicted 6240 | 90 1204 771 434 . 1353 . 2388 Guns 2417 | 90 661 159 205 . 467 . 835 Cannons 419 | . . 190 229 . . . . Explosions 2245 | . 519 422 . . 886 . 418 Melee 1135 | . . . . . . . 1135 Ramming . | . . . . . . . . Kinetic 2418 | 32 199 666 265 . 886 . 370 Thermal 1594 | 58 486 105 169 . 467 . 309 Explosive 519 | . 519 . . . . . . Electromagnetic 574 | . . . . . . . 574 Impact 112 | . . . . . . . 112 Slashing . | . . . . . . . . Piercing 1023 | . . . . . . . 1023 Highest Corruption 3 | . . . . . 1 . 3 Average Corruption 2 | . . . . . 1 . 2 Corruption Purged . | . . . . . . . . Corruption Blocked . | . . . . . . . . Effects 18 | . . . . . 2 . 16 Message Errors 4 | . . . . . . . 4 Matter Fused 8 | . . . . . 1 . 7 Heat Flow Errors 1 | . . . . . . . 1 Data Loss (minor) 3 | . . . . . 1 . 2 Alerts 1 | . . . . . . . 1 Weapon Failures 1 | . . . . . . . 1 Overload Shots . | . . . . . . . . Overflow Damage 141 | . 2 14 29 . 32 . 64 Projectiles 29 | . . . 29 . . . . Explosions 81 | . 2 14 . . 32 . 33 Melee 31 | . . . . . . . 31 Knockbacks . | . . . . . . . . Impact . | . . . . . . . . Kinetic . | . . . . . . . . Secondary . | . . . . . . . . Self-Inflicted Damage 114 | . 20 12 . . 82 . . Shots 4 | . 1 1 . . 2 . . Rammed . | . . . . . . . . Targets Rammed . | . . . . . . . . Kicked . | . . . . . . . . Crushed . | . . . . . . . . Highest Temperature 318 | 20 160 7 318 . 3 . 260 Average Temperature 54 | 13 51 4 77 . 2 . 39 Received Heat Transfer 1344 | . 144 162 36 . 99 114 789 Siege Activations . | . . . . . . . . Robots Corrupted 1 | . . . . . . . 1 Combat Hostiles 1 | . . . . . . . 1 Parts Fried 3 | . . . 1 . . . 2 Impact Corruptions 1 | . . . 1 . . . . Robots Melted 1 | . . . . . . . 1 Combat Hostiles 1 | . . . . . . . 1 Parts Melted 7 | . 1 . . . . . 6 Heat Transferred 4535 | 125 1594 222 370 . 962 . 1262 Parts Sabotaged . | . . . . . . . . Parts Stolen . | . . . . . . . . Parts Stripped . | . . . . . . . . Power Chain Reactions 1 | . . . . . . . 1 Alert | -11 -10 -10 -9 -7 -7 -6 -6 ------- Run | Yrd Mat Sub Rec Fac DSF Fac Gar Peak Influence 606 | 25 377 . 241 . 310 162 606 Initial 187 | . 16 . 187 . . 162 24 Average 167 | 8 172 . 109 . 137 102 307 Maximum Alert Level 2 | . 1 . 1 . 1 . 2 Low Security (%) 73 | 100 72 . 85 100 53 100 45 Level 1 17 | . 27 . 14 . 46 . 9 Level 2 9 | . . . . . . . 44 Level 3 . | . . . . . . . . Level 4 . | . . . . . . . . Level 5 . | . . . . . . . . High Security . | . . . . . . . . Max Security . | . . . . . . . . Sterilizations 1 | . . . . . 1 . . Squads Dispatched 4 | . 2 . . . 2 . . Investigation . | . . . . . . . . Extermination . | . . . . . . . . Reinforcement 4 | . 2 . . . 2 . . Assault . | . . . . . . . . Garrison . | . . . . . . . . Intercept . | . . . . . . . . Searches Triggered . | . . . . . . . . Construction Impeded . | . . . . . . . . Haulers Reinforced . | . . . . . . . . Active Scanning Responses . | . . . . . . . . Cargo Convoy Interrupts . | . . . . . . . . Stealth | -11 -10 -10 -9 -7 -7 -6 -6 --------- Run | Yrd Mat Sub Rec Fac DSF Fac Gar Distress Signals 1 | . 1 . . . . . . Communications Jammed . | . . . . . . . . Distress Signals . | . . . . . . . . Times Spotted 96 | . 17 27 2 . 12 5 33 Peak Tracking Total 11 | . 6 6 2 . 5 5 11 Tactical Retreats 8 | . . 1 . . 3 . 4 Traps | -11 -10 -10 -9 -7 -7 -6 -6 ------- Run | Yrd Mat Sub Rec Fac DSF Fac Gar Traps Triggered 3 | . . 1 . . 1 . 1 Indirectly . | . . . . . . . . Trap Hack Attempts . | . . . . . . . . Triggered . | . . . . . . . . Disarmed . | . . . . . . . . Reprogrammed . | . . . . . . . . Reused . | . . . . . . . . Traps Extracted . | . . . . . . . . Installed . | . . . . . . . . Triggered . | . . . . . . . . Machines | -11 -10 -10 -9 -7 -7 -6 -6 ---------- Run | Yrd Mat Sub Rec Fac DSF Fac Gar Machines Disabled 7 | . 3 4 . . . . . Max in Single Turn 4 | . 2 4 . . . . . Machines Repaired . | . . . . . . . . Machines Dismantled . | . . . . . . . . Machines Sabotaged . | . . . . . . . . Overloaded Fab Kills . | . . . . . . . . Hacking | -11 -10 -10 -9 -7 -7 -6 -6 --------- Run | Yrd Mat Sub Rec Fac DSF Fac Gar Machines Accessed 12 | . 3 1 4 1 . 2 1 Terminals 7 | . 2 . 2 1 . 1 1 Fabricators . | . . . . . . . . Repair Stations . | . . . . . . . . Recycling Units 3 | . 1 . 2 . . . . Scanalyzers . | . . . . . . . . Garrison Access 1 | . . . . . . 1 . Total Hacks 19 | . 4 4 5 2 . 2 2 Successful 11 | . 3 4 2 1 . 1 . Failed 8 | . 1 . 3 1 . 1 2 Catastrophic 1 | . . . . . . . 1 Database Lockouts . | . . . . . . . . Manual 5 | . 1 1 2 . . 1 . Terminals 9 | . 2 . 2 2 . 1 2 Fabricators . | . . . . . . . . Repair Stations . | . . . . . . . . Recycling Units 5 | . 2 . 3 . . . . Scanalyzers . | . . . . . . . . Garrison Access 1 | . . . . . . 1 . Terminal Hacks 7 | . 2 4 . 1 . . . Record 4 | . . 4 . . . . . Open DSF 1 | . . . . 1 . . . Zone Layout 2 | . 2 . . . . . . Fabricator Hacks . | . . . . . . . . Repair Station Hacks . | . . . . . . . . Recycling Unit Hacks 3 | . 1 . 2 . . . . Retrieve Components 3 | . 1 . 2 . . . . Scanalyzer . | . . . . . . . . Garrison Access Hacks 1 | . . . . . . 1 . Unlock Access 1 | . . . . . . 1 . Unauthorized Hacks . | . . . . . . . . Terminals . | . . . . . . . . Fabricators . | . . . . . . . . Repair Stations . | . . . . . . . . Recycling Units . | . . . . . . . . Scanalyzers . | . . . . . . . . Garrison Access . | . . . . . . . . Data Cores Recovered . | . . . . . . . . Used . | . . . . . . . . Hacking Detections 5 | . . . 2 1 . 1 1 Full Trace Events 1 | . . . . . . . 1 Feedback Events . | . . . . . . . . Feedback Blocked . | . . . . . . . . Robot Schematics Acquired . | . . . . . . . . Robots Built . | . . . . . . . . Authchips . | . . . . . . . . Time . | . . . . . . . . Total Robot Build Rating . | . . . . . . . . Part Schematics Acquired . | . . . . . . . . Parts Built . | . . . . . . . . Authchips . | . . . . . . . . Time . | . . . . . . . . Total Part Build Rating . | . . . . . . . . Parts Repaired . | . . . . . . . . Time . | . . . . . . . . Parts Recycled . | . . . . . . . . Recycled Matter . | . . . . . . . . Retrieved Matter . | . . . . . . . . Retrieved Components 15 | . 8 . 7 . . . . Parts Scanalyzed . | . . . . . . . . Part Schematics Acquired . | . . . . . . . . Parts Damaged . | . . . . . . . . Bothacking | -11 -10 -10 -9 -7 -7 -6 -6 ------------ Run | Yrd Mat Sub Rec Fac DSF Fac Gar Used RIF Installer . | . . . . . . . . Robots Hacked . | . . . . . . . . Non-combat . | . . . . . . . . Combat . | . . . . . . . . Robot Hacks Applied . | . . . . . . . . Relay Couplers Released . | . . . . . . . . Fabnet Peak Effective % . | . . . . . . . . Robots Rewired . | . . . . . . . . Allies Hacked . | . . . . . . . . Hacks Repelled . | . . . . . . . . Allies | -11 -10 -10 -9 -7 -7 -6 -6 -------- Run | Yrd Mat Sub Rec Fac DSF Fac Gar Total Allies . | . . . . . . . . Largest Group . | . . . . . . . . Highest-Rated Group . | . . . . . . . . Highest-Rated Ally . | . . . . . . . . Total Orders . | . . . . . . . . Ally Attacks . | . . . . . . . . Total Damage . | . . . . . . . . Kills . | . . . . . . . . Allies Corrupted . | . . . . . . . . Allies Melted . | . . . . . . . . Intel | -11 -10 -10 -9 -7 -7 -6 -6 ------- Run | Yrd Mat Sub Rec Fac DSF Fac Gar Robot Analysis Total . | . . . . . . . . Derelict Logs Recovered 2 | . . 2 . . . . . Drone Launches . | . . . . . . . . Drone Recoveries . | . . . . . . . . Exploration | -11 -10 -10 -9 -7 -7 -6 -6 ------------- Run | Yrd Mat Sub Rec Fac DSF Fac Gar Turns Passed 5875 | 147 1265 1675 904 8 355 639 882 Spaces Moved 3234 | 75 660 1086 541 6 125 272 469 Core 16 | 14 . . . . . 2 . Treads 208 | . . . . . . 146 62 Legs 502 | 61 288 . . . 52 94 7 Wheels 2108 | . 372 1086 541 6 73 30 . Hover 211 | . . . . . . . 211 Flight 189 | . . . . . . . 189 Fastest Speed 40 | 50 120 140 140 150 150 137 40 Average Speed 148 | 125 141 140 149 150 210 227 120 Slowest Speed 1700 | 200 400 155 155 150 260 1700 262 Overloaded Moves . | . . . . . . . . Propulsion Burnouts . | . . . . . . . . Robots Hopped . | . . . . . . . . Cave-ins Triggered . | . . . . . . . . Exploration Rate (%) 48 | 4 77 40 90 . 88 5 37 Regions Visited 7 Branch Regions 2 Pre-discovered Areas 2 | . . 2 . . . . . Known Exits Taken 2 | . . . . 1 . 1 . Unknown Exits Taken 4 | 1 1 1 1 . . . . Scrap Searched 11 | . . 11 . . . . . Spaces Dug 8 | . . 5 2 . . 1 . Terrain Destroyed 208 | . 60 44 12 . 52 1 39 Melee 1 | . . . . . . 1 . Projectile 22 | . 2 8 12 . . . . AOE 185 | . 58 36 . . 52 . 39 Terrain Rammed . | . . . . . . . . Walls Destroyed . | . . . . . . . . Machines Disabled . | . . . . . . . . Actions | -11 -10 -10 -9 -7 -7 -6 -6 --------- Run | Yrd Mat Sub Rec Fac DSF Fac Gar Total 3843 | 110 828 1155 620 5 190 289 646 Wait 81 | 11 15 . 16 . 11 . 28 Move 3227 | 74 659 1085 540 5 124 271 469 Hop . | . . . . . . . . Pick Up 80 | 9 30 13 15 . 1 4 8 Fast Attach 19 | 6 1 . 2 . 2 . 8 Attach 19 | 1 2 2 . . 5 3 6 Detach 11 | . 2 . 1 . 1 5 2 Swap 34 | 1 11 12 7 . . 1 2 Drop 76 | . 22 9 20 . 14 2 9 Fire 242 | 8 86 34 19 . 32 2 61 Melee 54 | . . . . . . 1 53 Ram . | . . . . . . . . Kick . | . . . . . . . . Crush . | . . . . . . . . Escape Stasis . | . . . . . . . . Rewire . | . . . . . . . . Trap . | . . . . . . . . Miscellaneous . | . . . . . . . . Route ------- -11/Scrapyard -10/Materials (discovered 4 exits: [*Mat x3] / *Sub) -10/Subcaves (discovered 2 exits: [*Mat] / *Rec) -9/Recycling -7/Factory -7/DSF -6/Factory -6/Garrison (discovered 1 exit: [*Fac]) History --------- Turn | Location | Event 25 | -11/Scrapyard | Discovered new exit (range 15) 148 | -11/Scrapyard | Entered Materials 244 | -10/Materials | Destroyed 7 combat bots 333 | -10/Materials | Build established: Mutant 355 | -10/Materials | Discovered new exit (range 12) 809 | -10/Materials | Discovered new exit (range 10) 961 | -10/Materials | Build established: Scavenger-Mutant 1171 | -10/Materials | Discovered new exit (range 14) 1408 | -10/Materials | Discovered new exit (range 3) 1413 | -10/Materials | Entered Subcaves 1450 | -10/Subcaves | Learned location of Mines (-10) 1510 | -10/Subcaves | A swath of the cavern ceiling suddenly collapsed 1520 | -10/Subcaves | Learned location of Zion (-6) 1725 | -10/Subcaves | Build established: Mutant 1728 | -10/Subcaves | Visited Clippyterm 1732 | -10/Subcaves | Learned Research security intel 1843 | -10/Subcaves | A swath of the cavern ceiling suddenly collapsed 2373 | -10/Subcaves | Discovered new exit (range 12) 2685 | -10/Subcaves | Core integrity fell below 50% 3052 | -10/Subcaves | Discovered new exit (range 15) 3088 | -10/Subcaves | Entered Recycling 3089 | -9/Recycling | Joined Warlord attack on 0b10 via Recycling 3091 | -9/Recycling | Found Scrap Engine 3377 | -9/Recycling | Core integrity fell below 20% 3963 | -9/Recycling | Discovered new exit (range 15) 3992 | -9/Recycling | Entered Factory 3992 | -7/Factory | Evolved 6 slots: Power x1, Propulsion x2, Utility x3 3998 | -7/Factory | Identified exit to DSF 4000 | -7/Factory | Entered DSF 4074 | -7/DSF | Additional patrols routed to DSF 4092 | -7/DSF | Lost 3 parts (1p1n1u) 4211 | -7/DSF | Destroyed 7 combat bots 4264 | -7/DSF | Sterilization system engaged 4284 | -7/DSF | Ambient heat levels rising (+10) 4299 | -7/DSF | Ambient heat levels rising (+10) 4303 | -7/DSF | Discovered new exit (range 14) 4314 | -7/DSF | Ambient heat levels rising (+10) 4329 | -7/DSF | Ambient heat levels rising (+10) 4344 | -7/DSF | Ambient heat levels rising (+10) 4355 | -7/DSF | Entered Factory 4355 | -6/Factory | Evolved 2 slots: Propulsion x2 4577 | -6/Factory | Spotted B-75 Beast 4868 | -6/Factory | Build established: Construct 4993 | -6/Factory | Identified exit to Garrison 4994 | -6/Factory | Entered Garrison 5050 | -6/Garrison | Triggered checkpoint 5172 | -6/Garrison | Lost 10 parts (2p1n4u3w) 5350 | -6/Garrison | Spotted B-75 Beast 5364 | -6/Garrison | Core integrity fell below 50% 5365 | -6/Garrison | Destroyed B-75 Beast 5378 | -6/Garrison | Triggered checkpoint 5445 | -6/Garrison | Lost 5 parts (2p1n1u1w) 5488 | -6/Garrison | Core integrity fell below 20% 5590 | -6/Garrison | Triggered checkpoint 5708 | -6/Garrison | Discovered new exit (range 13) 5710 | -6/Garrison | Build established: Mutant 5730 | -6/Garrison | Triggered checkpoint 5763 | -6/Garrison | Lost 3 parts (2u1w) 5876 | -6/Garrison | Destroyed by S-27 Virus with Autogun Last Messages --------------- alarm sounds. 05732_ Adv. Heat Sink destroyed. 05746_ S-27 Virus destroyed. 05750_ Scrap Engine consumes VTOL Module. 05752_ Scrap Engine consumes Lgt. Nuclear Core. 05757_ Scrap Engine consumes VTOL Module. 05788_ Scrap Engine modifies Flying VTOL-Gravmag Exoskeleton: Support +24 Renamed Treaded VTOL-Gravmag Exoskeleton. 05815_ Scrap Engine modifies Deuterium-Nuclear Engine: Mass -2, Max Integrity -32 Renamed Nuclear-Deuterium Core. 05838_ System corrupted: Matter fused (-6). 05864_ S-27 Virus destroyed. 05865_ Scrap Engine consumes VTOL Module. 05870_ Scrap Engine destroyed. 05874_ Nuclear-Deuterium Core destroyed. 05875_ System corrupted: Matter fused (-9). Map ----- +----------------------------------------------------+ | ?????????????????????????????????????????????????? | | ?????????????????????????????????????????????????? | | ???????#?????????????????????????????????????????? | | ?????? #?????????????????????????????????????????? | | ?????? #?????????????????????????????????????????? | | ????# #?????????????????????????????????????????? | | """## ##????????????????????????????????????????? | | #??##????????????????????????????????????? | | ?????????????????????????????????????? | | ???????????????????????????????????????? | | ## #????????????????????????????????????????? | | ## #????????????????????????????????????????? | | "????????????????????????????????????????? | | % "????????????????????????????????????????? | | "????????????????###########?????????????? | | "????????????????# """""#?????????????? | | ## #????????????????# " "#?????????????? | | ## #############????# "#?????????????? | | ###### " "###???????????? | | # """ """"#???????????? | | #######T## ###### " #?????????????? | | ######?????#### #????# #?????????????? | | #?????????????# #????# #?????????????? | | ####?????????????# #????# #?????????????? | | ???????????# ##### ####### ########?????????????? | | ???????????# ; /s *@ #????????????????????? | | ???????????####### ####s####????????????????????? | | ?????????????????# #??#[#???????????????????????? | | ?????????????????# ####"########????????????????? | | ?????????????????# #????????????????? | | ????????????######%! #????????????????? | | ????????????# % ######### < #????????????????? | | ????????????# #######???????# #????????????????? | | ????????????# #?????????????#####????????????????? | | ????????????# #??????????????????????????????????? | | ????????????# ??????????????????????????????????? | | ????????????# ??????????????????????????????????? | | ????????????# ??????????????????????????????????? | | ????????????# #??????????????????????????????????? | | ????????????# #??????????????????????????????????? | | ????????????# #??????????????????????????????????? | | ????????????? ???????????????????????????????????? | | ????????????? ???????????????????????????????????? | | ????????????? ???????????????????????????????????? | | ????????????? ???????????????????????????????????? | | ????????????? ???????????????????????????????????? | | ????????????? ???????????????????????????????????? | | ?????????????#???????????????????????????????????? | | ?????????????????????????????????????????????????? | | ?????????????????????????????????????????????????? | +----------------------------------------------------+ Best States ------------- Heat Dissipation 59 Energy Generation 31 Energy Capacity 470 Matter Stores 300 Matter Capacity 300 Sight Range 16 Robot Scan Range 14 Terrain Scan Range 16 Terrain Scan Density 10 Armor Coverage 800 Resistance: EX 50 Phase Shifting 5 Evasion (%) 62 Targeting Accuracy 8 Recoil Reduction 3 Item Schematics ----------------- None Robot Schematics ------------------ None Fabricated ------------ Nothing Alien Tech Used ----------------- None Achievements -------------- None Challenges ------------ None Game ------ Seed RemoteRecoilChip Manual? 0 Play Time 00:54:27 Cumulative 70.5 hours Start 2024.04.17 @ 17:59:08 End 2024.04.17 @ 18:49:50 Sessions 1 Manual Loads 0 Difficulty Rogue Special Mode None Game No. 86 Rogue 86 Adventurer 0 Explorer 0 Win Type - Total 0 Types 0/0/0/0/0/0/0/0/0 Lore% 19 Gallery% 43 Achievement% 30 Wizard Run 0 Options --------- Layout 1 ASCII 0 Keyboard 1 Movement Vi Keybinds 0 Fullscreen 1 Font 24/Smallcaps Map View 50x35 Zoom Use 0% Tactical HUD 1 Map Filters NONE Filters NONE Steam 1 RUN: 54daba35-1121-4dae-9659-44dfed2906d0